bitfinex-derivatives/quotes_BTCF0:USTF0_20240830
["timestamp","ask_amount","ask_price","bid_price","bid_amount"]
[1725032107545,0.02789411,58130.0,58129.0,0.36105809]
[1725032107936,0.02789411,58130.0,58129.0,1.86315709]
[1725032108134,0.02789411,58130.0,58129.0,1.26315709]
[1725032108442,0.100005,58139.0,58130.0,0.086018]
[1725032108747,0.100005,58139.0,58138.0,0.3608]
[1725032108946,0.086005,58139.0,58138.0,0.3608]
[1725032109147,0.14712104,58139.0,58138.0,0.3608]
[1725032109647,0.16112104,58139.0,58138.0,0.3608]
[1725032111141,0.07511604,58139.0,58138.0,0.3608]
[1725032111339,0.0278892,58139.0,58138.0,1.4768]
[1725032111534,0.09701547,58139.0,58138.0,1.563806]
[1725032111739,0.014,58139.0,58138.0,1.563806]
[1725032112152,0.00025809,58140.0,58139.0,0.086005]
[1725032112443,0.00025809,58140.0,58139.0,1.262805]
[1725032112635,0.00025809,58140.0,58139.0,1.862805]
[1725032113145,0.08301547,58158.0,58139.0,1.862805]
[1725032113349,0.08301547,58163.0,58157.0,0.3608]
[1725032113546,0.08301547,58167.0,58162.0,0.3608]
[1725032113738,0.001,58170.0,58163.0,0.3608]
[1725032113936,0.3,58164.0,58157.0,0.3608]
[1725032114142,0.08301547,58166.0,58150.0,0.3608]
[1725032114143,0.085979,58156.0,58155.0,0.00025809]
[1725032114543,0.085979,58156.0,58155.0,0.36105809]
[1725032115543,0.685979,58156.0,58155.0,0.36105809]
[1725032115850,0.085979,58156.0,58155.0,0.00025809]
[1725032116151,0.085979,58156.0,58155.0,0.00125809]
[1725032116152,1.201819,58156.0,58155.0,0.00125809]
[1725032116351,0.085979,58156.0,58155.0,0.00125809]
[1725032116657,0.085979,58156.0,58155.0,0.36205809]
[1725032117347,0.08301547,58168.0,58155.0,0.36205809]
[1725032117546,0.085966,58165.0,58161.0,0.085971]
[1725032117748,0.085966,58165.0,58164.0,0.3608]
[1725032118249,0.0138838,58168.0,58164.0,0.3608]
[1725032118454,0.2083,58174.0,58165.0,0.446766]
[1725032119244,0.01419642,58170.0,58165.0,0.446766]
[1725032119655,0.2083,58174.0,58165.0,0.446766]
[1725032119955,0.00325809,58166.0,58165.0,0.447766]
[1725032120752,0.00325809,58166.0,58165.0,1.821532]
[1725032120956,0.00325809,58166.0,58165.0,1.83030507]
[1725032121158,0.01413222,58184.0,58181.0,0.085942]
[1725032121457,0.3608,58192.0,58183.0,0.3608]
[1725032121458,0.085938,58185.0,58183.0,0.3608]
[1725032121763,0.3608,58213.0,58184.0,0.3]
[1725032122063,0.08591,58203.0,58202.0,0.3608]
[1725032122249,0.08591,58203.0,58193.0,0.00025783]
[1725032122250,0.085922,58195.0,58193.0,0.00025783]
[1725032122764,0.51552,58194.0,58193.0,0.00025783]
[1725032122972,0.085922,58195.0,58193.0,0.00025783]
[1725032123353,0.0144696,58204.0,58193.0,0.00025783]
[1725032123656,0.00025783,58204.0,58203.0,0.3608]
[1725032123954,0.3608,58227.0,58204.0,0.00871784]
[1725032124149,0.085887,58219.0,58217.0,0.3608]
[1725032124554,0.3608,58227.0,58208.0,0.085902]
[1725032124858,0.3608,58227.0,58212.0,0.00025783]
[1725032124859,0.085894,58214.0,58212.0,0.00025783]
[1725032125248,0.00025783,58223.0,58212.0,0.36105783]
[1725032125448,0.00025783,58223.0,58222.0,0.3608]
[1725032125648,0.497951,58243.0,58222.0,0.6608]
[1725032125649,0.085857,58239.0,58222.0,0.6608]
[1725032125958,0.085861,58236.0,58233.0,0.3]
[1725032126257,0.01397295,58243.0,58235.0,0.3608]
[1725032126461,0.08586,58237.0,58235.0,0.3608]
[1725032126961,0.00016958,58245.0,58235.0,0.3608]
[1725032127151,0.08601758,58245.0,58243.0,0.3608]
[1725032127349,0.00016958,58245.0,58240.0,0.3]
[1725032127555,0.085851,58243.0,58242.0,0.3608]
[1725032127861,0.085851,58243.0,58235.0,0.3]
[1725032128167,0.00016958,58245.0,58242.0,0.3608]
[1725032128556,0.00016958,58245.0,58243.0,0.08585]
[1725032129063,0.01410842,58254.0,58244.0,0.51508]
[1725032129262,0.01410842,58254.0,58253.0,1.0216]
[1725032129561,0.085834,58255.0,58253.0,1.0216]
[1725032129764,0.3608,58266.0,58253.0,0.3]
[1725032129954,0.2006,58270.0,58264.0,0.3]
[1725032130264,0.3608,58271.0,58264.0,0.3]
[1725032130265,0.085819,58265.0,58264.0,0.3]
[1725032130469,0.08581,58272.0,58264.0,0.3]
[1725032130657,0.085816,58267.0,58264.0,0.3]
[1725032130859,0.2144551,58280.0,58264.0,0.3]
[1725032131059,0.3608,58276.0,58266.0,0.3608]
[1725032131262,0.085816,58267.0,58266.0,0.3608]
[1725032131461,0.085816,58267.0,58261.0,0.00025759]
[1725032131462,0.085823,58262.0,58261.0,0.00025759]
[1725032131962,0.3608,58276.0,58261.0,0.00025759]
[1725032132260,0.2005,58280.0,58274.0,0.3608]
[1725032132465,0.085809,58272.0,58268.0,0.3608]
[1725032132674,0.21474641,58280.0,58268.0,0.7216]
[1725032132862,0.085806,58274.0,58268.0,0.446614]
[1725032133063,0.085807,58273.0,58268.0,0.446614]
[1725032133263,0.21474641,58280.0,58269.0,0.3608]
[1725032133458,0.08581,58271.0,58269.0,0.3608]
[1725032134468,0.085803,58276.0,58270.0,0.085811]
[1725032134662,0.085803,58276.0,58275.0,0.3608]
[1725032135373,0.01412554,58280.0,58275.0,0.3608]
[1725032135374,0.01412554,58280.0,58275.0,0.32472001]
[1725032135666,0.085802,58277.0,58275.0,0.32472001]
[1725032135968,0.085802,58276.0,58275.0,0.32472001]
[1725032136163,0.08581,58271.0,58270.0,0.00025759]
[1725032136963,0.37449095,58283.0,58275.0,0.001]
[1725032136964,0.085801,58277.0,58275.0,0.001]
[1725032137167,0.085794,58282.0,58275.0,0.001]
[1725032137369,0.3608,58293.0,58281.0,0.3608]
[1725032137564,0.3608,58293.0,58286.0,0.3608]
[1725032137764,0.085786,58287.0,58286.0,0.3608]
[1725032138274,0.085794,58282.0,58281.0,0.00025736]
[1725032138662,0.6608,58294.0,58281.0,0.00025736]
[1725032138663,0.0140899,58287.0,58281.0,0.44685236]
[1725032138863,0.085792,58283.0,58281.0,0.36105736]
[1725032139170,0.37501942,58294.0,58282.0,0.3]
[1725032139473,0.09999542,58294.0,58293.0,0.3608]
[1725032140362,0.085776,58294.0,58293.0,0.3608]
[1725032140561,0.3608,58304.0,58293.0,1.17644]
[1725032140878,0.085754,58309.0,58299.0,0.3608]
[1725032141060,0.085761,58304.0,58300.0,0.085767]
[1725032141261,0.3608,58311.0,58300.0,0.085767]
[1725032141576,0.3608,58306.0,58293.0,0.66205736]
[1725032141763,0.085776,58294.0,58293.0,0.36051259]
[1725032142870,0.085776,58294.0,58293.0,0.00125736]
[1725032143175,0.171552,58294.0,58293.0,0.00125736]
[1725032144375,0.085776,58294.0,58293.0,0.00125736]
[1725032145260,0.08577,58298.0,58293.0,0.36205736]
[1725032145464,0.09990883,58301.0,58298.0,0.08577]
[1725032145671,0.085776,58294.0,58293.0,0.36205736]
[1725032146675,0.171552,58294.0,58293.0,0.36205736]
[1725032147073,0.618128,58294.0,58293.0,0.00125736]
[1725032147377,0.171578,58285.0,58284.0,0.3608]
[1725032147576,0.3608,58285.0,58273.0,0.00096]
[1725032147766,0.08581,58271.0,58270.0,0.08581]
[1725032147969,0.385791,58284.0,58270.0,0.00840264]
[1725032148278,0.385791,58284.0,58264.0,0.3608]
[1725032148279,0.3,58279.0,58271.0,0.00025736]
[1725032148465,0.085808,58272.0,58271.0,0.00025736]
[1725032148662,0.3608,58280.0,58275.0,0.085803]
[1725032148872,0.3608,58280.0,58271.0,0.00025736]
[1725032149370,0.085807,58274.0,58271.0,0.00025736]
[1725032149562,0.085801,58277.0,58273.0,0.001]
[1725032149770,0.085805,58274.0,58273.0,0.001]
[1725032149964,0.00025657,58283.0,58273.0,0.301]
[1725032150170,0.00025657,58283.0,58282.0,0.085794]
[1725032150869,0.085796,58281.0,58278.0,0.3608]
[1725032151079,0.00025657,58283.0,58282.0,0.085794]
[1725032151669,0.01362127,58295.0,58282.0,1.11472]
[1725032151873,0.085774,58296.0,58293.0,0.085776]
[1725032152068,0.085769,58299.0,58292.0,0.085779]
[1725032152269,0.085769,58299.0,58291.0,0.3608]
[1725032152480,0.085779,58292.0,58291.0,0.3608]
[1725032153569,0.098779,58292.0,58291.0,0.3618]
[1725032153770,0.184558,58292.0,58291.0,0.001]
[1725032153971,0.545358,58292.0,58291.0,0.001]
[1725032154177,1.50858356,58292.0,58291.0,0.002]
[1725032154365,1.31280456,58292.0,58291.0,0.002]
[1725032154572,1.86938356,58292.0,58291.0,0.002]
[1725032154771,0.257358,58287.0,58286.0,0.00025736]
[1725032154978,0.085808,58272.0,58271.0,0.3608]
[1725032155280,0.171616,58272.0,58271.0,0.3608]
[1725032155668,0.085813,58269.0,58268.0,0.3608]
[1725032155868,0.085813,58269.0,58268.0,0.7216]
[1725032156878,0.096813,58269.0,58268.0,0.7226]
[1725032157584,0.013,58269.0,58268.0,0.809414]
[1725032157974,0.098813,58269.0,58268.0,0.7236]
[1725032158681,0.098813,58269.0,58268.0,0.002]
[1725032158882,0.184626,58269.0,58268.0,0.002]
[1725032159180,0.098813,58269.0,58268.0,0.002]
[1725032159381,0.10109554,58269.0,58268.0,0.002]
[1725032159780,1.32957364,58269.0,58268.0,0.002]
[1725032160185,1.42834506,58269.0,58268.0,0.002]
[1725032160386,0.25746,58264.0,58263.0,0.00025736]
[1725032160579,0.17166,58257.0,58256.0,0.3608]
[1725032160773,0.085845,58248.0,58247.0,0.3608]
[1725032161081,0.08356285,58260.0,58247.0,0.66931613]
[1725032161386,0.085826,58260.0,58254.0,0.3]
[1725032161585,0.0835617,58262.0,58260.0,0.085825]
[1725032161776,0.085824,58262.0,58261.0,0.3608]
[1725032161980,0.085827,58260.0,58256.0,0.086831]
[1725032162178,0.08355437,58261.0,58256.0,0.086831]
[1725032162381,0.085827,58260.0,58256.0,0.001]
[1725032162697,0.099827,58260.0,58256.0,0.001]
[1725032162983,0.08583,58257.0,58256.0,0.086832]
[1725032163174,0.08355437,58262.0,58259.0,0.085827]
[1725032163374,0.00025736,58263.0,58261.0,0.446624]
[1725032163584,0.00025736,58263.0,58261.0,0.3608]
[1725032163975,0.085823,58262.0,58261.0,0.3608]
[1725032164282,0.17166,58257.0,58256.0,0.3608]
[1725032164487,0.08583,58257.0,58256.0,0.3608]
[1725032164683,0.15259893,58257.0,58256.0,0.3608]
[1725032164989,0.08583,58257.0,58256.0,0.3608]
[1725032165181,0.17166,58257.0,58256.0,0.3608]
[1725032165376,0.23842893,58257.0,58256.0,0.3608]
[1725032165674,0.085838,58252.0,58251.0,0.00025736]
[1725032166079,0.16922237,58252.0,58251.0,0.00025736]
[1725032166380,0.171676,58252.0,58251.0,0.00025736]
[1725032166576,1.115,58252.0,58237.0,0.36176]
[1725032166789,0.014,58257.0,58233.0,0.3608]
[1725032166790,0.06662553,58239.0,58233.0,0.3608]
[1725032166985,0.08328192,58245.0,58238.0,0.3608]
[1725032167191,0.08328192,58245.0,58220.0,0.3608]
[1725032167192,0.6608,58239.0,58220.0,0.3608]
[1725032167389,0.06662177,58237.0,58231.0,0.3608]
[1725032167779,0.15248777,58233.0,58231.0,0.3608]
[1725032168081,0.15248777,58233.0,58228.0,0.00025759]
[1725032168082,0.085872,58229.0,58228.0,0.00025759]
[1725032168289,0.446672,58229.0,58228.0,0.00025759]
[1725032168484,1.561872,58229.0,58228.0,0.00025759]
[1725032168682,1.647744,58229.0,58228.0,0.00025759]
[1725032168882,1.647744,58229.0,58228.0,5.9e-07]
[1725032168883,1.261872,58229.0,58228.0,5.9e-07]
[1725032169083,0.5130466,58229.0,58228.0,5.9e-07]
[1725032169383,0.446672,58229.0,58228.0,5.9e-07]
[1725032169588,0.085872,58229.0,58228.0,5.9e-07]
[1725032169787,0.3,58233.0,58228.0,5.9e-07]
[1725032170088,0.085865,58234.0,58228.0,5.9e-07]
[1725032170394,0.028,58229.0,58228.0,0.00100059]
[1725032170985,1.300944,58229.0,58228.0,0.00100059]
[1725032171182,0.099872,58229.0,58228.0,0.00100059]
[1725032171386,0.014,58229.0,58228.0,0.36180059]
[1725032171589,0.028,58229.0,58228.0,0.36180059]
[1725032171788,0.113872,58229.0,58228.0,0.36180059]
[1725032172095,0.028,58229.0,58228.0,0.36180059]
[1725032172294,0.028,58229.0,58228.0,0.44767359]
[1725032173097,0.014,58229.0,58228.0,0.44767359]
[1725032173494,0.099872,58229.0,58228.0,0.36180059]
[1725032173686,0.615072,58229.0,58228.0,0.36180059]
[1725032173887,1.575872,58229.0,58215.0,0.3608]
[1725032174087,0.085887,58219.0,58215.0,0.3608]
[1725032174299,0.085891,58216.0,58215.0,0.3608]
[1725032174893,0.446692,58216.0,58210.0,0.00025759]
[1725032175195,0.085898,58211.0,58210.0,0.00025759]
[1725032175498,0.00025759,58221.0,58210.0,0.36105759]
[1725032175499,0.006,58219.0,58210.0,0.36105759]
[1725032175690,5.4e-07,58219.0,58218.0,0.532576]
[1725032175896,5.4e-07,58219.0,58218.0,0.962008]
[1725032176093,5.4e-07,58219.0,58218.0,0.3608]
[1725032176295,5.4e-07,58219.0,58218.0,0.446688]
[1725032176986,0.00025759,58221.0,58219.0,0.085885]
[1725032177188,0.00025759,58221.0,58219.0,0.446685]
[1725032177991,0.085885,58220.0,58219.0,0.3608]
[1725032178392,0.171772,58219.0,58218.0,0.001]
[1725032178596,0.171796,58211.0,58210.0,0.00025759]
[1725032178896,0.471796,58211.0,58210.0,0.00025759]
[1725032179094,0.171812,58206.0,58205.0,0.3608]
[1725032179285,0.8154,58206.0,58192.0,0.3608]
[1725032179488,0.3,58206.0,58199.0,0.3608]
[1725032179691,0.085913,58201.0,58199.0,0.3608]
[1725032179891,0.3608,58208.0,58199.0,0.3608]
[1725032180092,0.085913,58201.0,58199.0,0.3608]
[1725032180593,0.085914,58200.0,58199.0,0.3608]
[1725032180794,0.171832,58199.0,58198.0,0.00025759]
[1725032180995,0.085916,58199.0,58183.0,0.3608]
[1725032181198,0.085925,58193.0,58186.0,0.085935]
[1725032181394,0.085927,58192.0,58188.0,0.3608]
[1725032181586,0.085919,58197.0,58188.0,0.3608]
[1725032181901,0.015,58201.0,58196.0,0.3608]
[1725032182101,0.015,58201.0,58200.0,0.3608]
[1725032182402,0.001,58200.0,58187.0,0.00017171]
[1725032182587,0.3,58197.0,58190.0,0.3608]
[1725032183095,0.001,58200.0,58197.0,0.085918]
[1725032183687,0.001,58200.0,58199.0,0.085916]
[1725032183890,0.009,58201.0,58199.0,0.085916]
[1725032184200,0.009,58201.0,58200.0,0.085914]
[1725032184596,0.08616659,58204.0,58200.0,0.085914]
[1725032185307,0.009,58201.0,58200.0,0.085914]
[1725032186089,0.009,58201.0,58199.0,0.3618]
[1725032186997,0.02725759,58204.0,58200.0,0.001]
[1725032187499,0.027,58201.0,58199.0,0.3618]
[1725032187691,0.085914,58200.0,58199.0,0.3618]
[1725032187887,0.085914,58200.0,58199.0,0.001]
[1725032188098,0.171828,58200.0,58199.0,0.001]
[1725032188297,1.048108,58200.0,58199.0,0.001]
[1725032188505,1.648108,58200.0,58199.0,0.001]
[1725032188703,1.648108,58200.0,58187.0,0.00017171]
[1725032188704,0.085932,58188.0,58187.0,0.00017171]
[1725032188998,0.085932,58188.0,58187.0,0.36097171]
[1725032189496,0.085932,58188.0,58187.0,0.00017171]
[1725032190301,0.085932,58188.0,58174.0,0.3608]
[1725032190302,0.085948,58178.0,58174.0,0.3608]
[1725032190605,0.085951,58175.0,58174.0,0.3608]
[1725032191403,0.084951,58175.0,58174.0,0.3608]
[1725032191601,0.00025784,58180.0,58179.0,0.085945]
[1725032191801,0.00025784,58180.0,58179.0,0.97101702]
[1725032191994,0.189,58203.0,58181.0,0.085942]
[1725032192198,0.09466901,58209.0,58202.0,0.3608]
[1725032192599,0.08591,58203.0,58202.0,0.3608]
[1725032192992,0.0999912,58207.0,58202.0,0.3608]
[1725032193300,0.0140862,58207.0,58204.0,0.3608]
[1725032193509,0.00025784,58210.0,58204.0,0.3608]
[1725032193510,0.085907,58205.0,58204.0,0.3608]
[1725032194503,0.085914,58200.0,58199.0,0.00025784]
[1725032194691,0.085909,58204.0,58199.0,0.00025784]
[1725032194891,0.014,58205.0,58199.0,0.00025784]
[1725032195201,0.099907,58205.0,58204.0,0.35979857]
[1725032195597,0.701254,58205.0,58204.0,0.35979857]
[1725032195801,0.715254,58205.0,58204.0,0.35979857]
[1725032196203,0.72930719,58205.0,58204.0,0.35979857]
[1725032196394,0.04205319,58205.0,58204.0,0.35979857]
[1725032196697,0.12796019,58205.0,58204.0,0.35979857]
[1725032197007,0.64340019,58205.0,58204.0,0.35979857]
[1725032197312,0.63840019,58205.0,58204.0,0.35979857]
[1725032197805,0.64340019,58205.0,58204.0,0.35979857]
[1725032198002,0.12796019,58205.0,58204.0,0.35979857]
[1725032198197,0.62940019,58205.0,58204.0,0.35979857]
[1725032198501,0.64340019,58205.0,58204.0,0.35979857]
[1725032198704,0.12796019,58205.0,58204.0,0.35979857]
[1725032200608,0.02805319,58205.0,58204.0,0.44570757]
[1725032200809,0.04205319,58205.0,58204.0,0.44570757]
[1725032201010,0.028,58205.0,58204.0,0.44570757]
[1725032201214,0.028,58205.0,58204.0,0.53161657]
[1725032201403,0.014,58205.0,58204.0,0.53161657]
[1725032201597,0.028,58205.0,58204.0,0.53161657]
[1725032201905,0.01703802,58205.0,58204.0,1.7471326]
[1725032202109,0.01560897,58205.0,58204.0,1.6612236]
[1725032202310,0.028,58205.0,58204.0,0.7957836]
[1725032202614,0.028,58205.0,58204.0,1.40593396]
[1725032202802,0.00025784,58210.0,58209.0,0.257703]
[1725032203111,8.4e-07,58210.0,58209.0,1.468503]
[1725032203314,8.4e-07,58210.0,58209.0,1.897962]
[1725032203815,0.0663746,58227.0,58209.0,1.812061]
[1725032204109,0.1522516,58226.0,58224.0,0.3608]
[1725032204810,0.085877,58226.0,58224.0,0.3608]
[1725032205202,0.0703746,58227.0,58224.0,0.3608]
[1725032205397,0.004,58227.0,58224.0,0.3608]
[1725032205599,0.003,58227.0,58226.0,0.171752]
[1725032205913,0.00025761,58231.0,58230.0,0.08587]
[1725032206117,0.0663746,58241.0,58240.0,0.085855]
[1725032206408,0.06664882,58245.0,58240.0,0.9716]
[1725032206610,0.06664882,58247.0,58246.0,0.085847]
[1725032206802,0.06664882,58249.0,58247.0,0.085845]
[1725032207002,0.085842,58249.0,58248.0,0.25]
[1725032207204,0.15250326,58249.0,58248.0,0.25]
[1725032207412,0.085842,58249.0,58248.0,0.25]
[1725032207598,0.08328192,58251.0,58244.0,0.25]
[1725032207806,0.085858,58239.0,58227.0,0.3608]
[1725032208109,0.06661766,58238.0,58229.0,0.3608]
[1725032208306,0.06661766,58237.0,58229.0,0.3608]
[1725032208499,0.06661766,58237.0,58230.0,0.08587]
[1725032208697,0.36661766,58238.0,58229.0,0.3608]
[1725032208921,0.06661766,58237.0,58229.0,0.3608]
[1725032209098,0.08587,58230.0,58229.0,0.3608]
[1725032209605,0.06661766,58236.0,58229.0,0.3608]
[1725032209906,0.06661766,58235.0,58229.0,0.3608]
[1725032210107,0.06661766,58235.0,58228.0,0.00025761]
[1725032210108,0.171744,58229.0,58228.0,0.00025761]
[1725032210311,0.171776,58218.0,58217.0,0.3608]
[1725032210516,0.171776,58218.0,58207.0,0.001]
[1725032210517,0.085903,58208.0,58207.0,0.001]
[1725032210813,0.085903,58208.0,58200.0,0.3608]
[1725032210814,0.385903,58208.0,58200.0,0.3608]
[1725032211002,0.085913,58201.0,58200.0,0.3608]
[1725032211206,0.06656428,58207.0,58200.0,0.3608]
[1725032211513,0.00025761,58206.0,58200.0,0.31285151]
[1725032211706,0.42736428,58208.0,58202.0,0.08591]
[1725032211914,0.3608,58208.0,58202.0,0.08591]
[1725032212302,0.3608,58208.0,58200.0,0.31285151]
[1725032212503,0.3,58206.0,58200.0,0.31285151]
[1725032212704,0.085912,58202.0,58200.0,0.31285151]
[1725032213009,0.3,58206.0,58195.0,0.36105761]
[1725032213010,0.085913,58201.0,58195.0,0.36105761]
[1725032213206,0.085913,58201.0,58200.0,0.001]
[1725032213411,0.08592,58196.0,58195.0,0.00025761]
[1725032213609,0.74672,58196.0,58195.0,0.00025761]
[1725032213801,0.38592,58196.0,58195.0,0.00025761]
[1725032214009,0.81324488,58196.0,58195.0,0.00025761]
[1725032214613,0.74672,58196.0,58195.0,0.00025761]
[1725032214813,0.39192,58196.0,58195.0,0.00025761]
[1725032215215,0.38592,58196.0,58195.0,0.00025761]
[1725032215404,0.09692,58196.0,58195.0,0.00025761]
[1725032215807,0.45772,58196.0,58195.0,0.00025761]
[1725032216108,0.11092,58196.0,58195.0,0.00125761]
[1725032216617,0.85764,58196.0,58195.0,0.00125761]
[1725032216909,0.085922,58195.0,58178.0,0.085947]
[1725032217114,0.085936,58186.0,58178.0,0.446747]
[1725032217502,0.3,58190.0,58183.0,0.3608]
[1725032217503,0.085937,58185.0,58183.0,0.3608]
[1725032217711,0.3,58190.0,58183.0,0.3608]
[1725032217907,0.00025761,58190.0,58183.0,0.3608]
[1725032218111,0.00025761,58190.0,58189.0,0.3608]
[1725032218311,0.00025761,58190.0,58185.0,0.085937]
[1725032218504,0.00025761,58190.0,58189.0,0.3608]
[1725032218705,0.00025761,58190.0,58189.0,0.962291]
[1725032218919,0.00025761,58190.0,58189.0,1.562291]
[1725032219805,0.08618661,58190.0,58189.0,0.3608]
[1725032220005,0.10018661,58190.0,58189.0,0.3618]
[1725032220515,0.01425761,58190.0,58189.0,0.3618]
[1725032220909,0.10018661,58190.0,58189.0,0.3618]
[1725032221303,0.18611561,58190.0,58189.0,0.001]
[1725032221509,0.08310975,58194.0,58189.0,0.601]
[1725032221806,0.085899,58211.0,58189.0,0.601]
[1725032221807,0.06661094,58214.0,58193.0,0.746724]
[1725032222009,0.06661094,58217.0,58213.0,0.6608]
[1725032222208,0.085891,58216.0,58213.0,0.6608]
[1725032222412,0.085893,58215.0,58213.0,0.3608]
[1725032222614,0.06661094,58216.0,58214.0,0.085893]
[1725032222812,0.06661094,58218.0,58214.0,0.085893]
[1725032223014,0.06661094,58217.0,58213.0,0.36176]
[1725032223204,0.06661094,58215.0,58214.0,0.3608]
[1725032223407,0.08589,58217.0,58214.0,0.446694]
[1725032223408,0.06661094,58217.0,58214.0,0.446694]
[1725032223610,0.06661094,58219.0,58214.0,0.446694]
[1725032223816,0.014,58215.0,58214.0,0.446694]
[1725032224316,0.014,58215.0,58214.0,1.562014]
[1725032224915,0.00025761,58220.0,58219.0,0.085886]
[1725032225112,0.085857,58239.0,58219.0,1.26933946]
[1725032225113,0.00025761,58225.0,58219.0,1.26933946]
[1725032225311,0.00025761,58225.0,58224.0,0.6608]
[1725032225614,0.00025761,58225.0,58224.0,0.746679]
[1725032225821,0.00025761,58225.0,58224.0,0.6608]
[1725032226114,0.00025761,58225.0,58224.0,0.75548573]
[1725032226520,0.00025761,58225.0,58224.0,0.746679]
[1725032227219,0.00025761,58225.0,58224.0,0.747679]
[1725032227409,0.00025761,58225.0,58224.0,1.862919]
[1725032227606,0.01125761,58225.0,58224.0,0.747679]
[1725032228215,0.01425761,58225.0,58224.0,0.747679]
[1725032229715,0.01425761,58225.0,58224.0,0.3618]
[1725032229915,0.10013561,58225.0,58224.0,0.3618]
[1725032230110,0.01425761,58225.0,58224.0,0.6118]
[1725032230515,0.01425761,58225.0,58224.0,0.3618]
[1725032230516,0.10013561,58225.0,58224.0,0.3618]
[1725032230827,0.01425761,58225.0,58224.0,0.6118]
[1725032231322,0.01425761,58225.0,58224.0,0.697679]
[1725032233112,0.10013561,58225.0,58224.0,0.3618]
[1725032234022,0.01425761,58225.0,58224.0,0.3618]
[1725032234728,0.10013561,58225.0,58224.0,0.3618]
[1725032234922,0.20601361,58225.0,58224.0,0.3618]
[1725032235120,1.40910018,58225.0,58224.0,0.001]
[1725032235324,0.085892,58215.0,58214.0,0.00025761]
[1725032236829,0.085892,58215.0,58214.0,0.00125761]
[1725032237127,0.08329151,58219.0,58214.0,0.00125761]
[1725032237326,0.09994981,58224.0,58218.0,0.3608]
[1725032237327,0.08329151,58224.0,58218.0,0.3608]
[1725032237633,0.00025761,58225.0,58224.0,0.085879]
[1725032239017,0.01425761,58225.0,58224.0,0.085879]
[1725032239525,0.085879,58224.0,58223.0,0.3608]
[1725032239723,0.01425761,58225.0,58223.0,0.3608]
[1725032239929,0.01425761,58225.0,58224.0,0.085879]
[1725032240829,0.085879,58224.0,58223.0,0.36168]
[1725032241025,0.085879,58224.0,58223.0,0.36164909]
[1725032241026,0.099879,58224.0,58223.0,0.36164909]
[1725032241325,0.085879,58224.0,58223.0,0.36164909]
[1725032241530,0.085879,58224.0,58223.0,0.44753009]
[1725032241830,0.01425761,58225.0,58224.0,0.086879]
[1725032242029,0.00025761,58225.0,58224.0,0.086879]
[1725032242837,0.00025761,58225.0,58218.0,0.3608]
[1725032242838,0.257658,58219.0,58214.0,0.00025761]
[1725032243019,0.257658,58219.0,58196.0,0.09452]
[1725032243020,0.335892,58215.0,58199.0,0.3608]
[1725032243217,0.04995337,58203.0,58199.0,0.446716]
[1725032243430,0.085914,58200.0,58199.0,0.3608]
[1725032243634,0.085909,58204.0,58195.0,0.085921]
[1725032243822,0.085909,58204.0,58193.0,0.446723]
[1725032243823,0.04993808,58196.0,58193.0,0.446723]
[1725032244016,0.04992938,58194.0,58193.0,0.446723]
[1725032244225,0.00025761,58200.0,58193.0,0.446723]
[1725032244725,0.085922,58195.0,58193.0,0.3608]
[1725032245119,0.00125761,58200.0,58193.0,0.3608]
[1725032245120,0.085923,58194.0,58193.0,0.3608]
[1725032245625,0.471846,58194.0,58193.0,0.3608]
[1725032245832,0.085929,58190.0,58189.0,0.00025761]
[1725032246023,0.446729,58190.0,58189.0,0.00025761]
[1725032246228,0.99015417,58190.0,58189.0,0.00025761]
[1725032246426,0.085941,58182.0,58172.0,0.3608]
[1725032246621,0.04991122,58173.0,58172.0,0.3608]
[1725032246824,0.085954,58174.0,58172.0,0.3608]
[1725032247026,0.085958,58171.0,58167.0,0.3608]
[1725032247221,0.085958,58171.0,58158.0,0.3608]
[1725032247222,0.085964,58167.0,58158.0,0.3608]
[1725032247423,0.085967,58165.0,58158.0,0.3608]
[1725032247625,0.085967,58165.0,58164.0,0.3608]
[1725032247830,0.085967,58165.0,58158.0,0.3608]
[1725032248229,0.00025783,58168.0,58158.0,0.3608]
[1725032248230,0.30025783,58168.0,58158.0,0.3608]
[1725032248431,0.085974,58160.0,58158.0,0.3608]
[1725032248834,0.00025783,58168.0,58158.0,0.3608]
[1725032249025,0.00025783,58168.0,58165.0,0.3608]
[1725032249430,0.3608,58166.0,58158.0,0.3608]
[1725032249637,0.085974,58160.0,58158.0,0.3608]
[1725032250532,0.085966,58165.0,58158.0,0.3608]
[1725032250728,0.01425783,58168.0,58164.0,0.3608]
[1725032251229,0.01425783,58168.0,58166.0,0.085964]
[1725032251630,0.01425783,58168.0,58158.0,0.3608]
[1725032251631,0.085975,58159.0,58152.0,0.3608]
[1725032251835,0.3,58158.0,58152.0,0.3608]
[1725032252248,0.385976,58158.0,58152.0,0.3608]
[1725032252536,0.3,58158.0,58157.0,0.36105783]
[1725032253533,0.31419141,58158.0,58157.0,0.36105783]
[1725032254133,1.51600741,58158.0,58157.0,0.36105783]
[1725032254335,1.52600741,58158.0,58157.0,0.36105783]
[1725032254636,0.41016741,58158.0,58157.0,0.36105783]
[1725032254838,0.92600741,58158.0,58157.0,0.36105783]
[1725032255034,0.92600741,58158.0,58146.0,0.3608]
[1725032255035,1.44003141,58158.0,58146.0,0.3608]
[1725032255339,0.3,58147.0,58146.0,0.3608]
[1725032255537,0.385994,58147.0,58140.0,0.3608]
[1725032255738,0.385994,58147.0,58134.0,0.3608]
[1725032255739,0.086011,58135.0,58134.0,0.3608]
[1725032255939,0.6608,58135.0,58124.0,0.01406582]
[1725032256144,0.6608,58135.0,58121.0,0.00881041]
[1725032256145,0.086021,58128.0,58121.0,0.086031]
[1725032256439,0.299,58123.0,58121.0,0.086031]
[1725032256629,0.299,58123.0,58118.0,0.3608]
[1725032256938,0.3608,58119.0,58107.0,0.3608]
[1725032257236,0.3,58108.0,58103.0,0.086058]